bitfinex/quotes_ETHUSD_20260121
["timestamp","ask_amount","ask_price","bid_price","bid_amount"]
[1769007570327,0.128,2983.5,2981.4,10.06238679]
[1769007570328,0.128,2983.5,2981.7,11.69173367]
[1769007570739,0.128,2983.5,2981.9,11.69173367]
[1769007572234,3.99839226,2983.4,2982.1,11.69173367]
[1769007572438,0.64651186,2983.4,2982.1,11.69173367]
[1769007573854,0.64651186,2983.4,2982.3,11.69173367]
[1769007574030,0.64651186,2983.4,2982.1,11.69173367]
[1769007574447,0.64651186,2983.4,2982.3,11.69173367]
[1769007574834,12.62191612,2983.4,2981.6,11.69173367]
[1769007575038,7.35041592,2983.4,2981.7,3.353737]
[1769007575353,0.64651186,2983.4,2982.1,11.69173367]
[1769007575523,3.99839404,2983.4,2982.1,11.69173367]
[1769007576357,0.64651186,2983.4,2982.2,11.69173367]
[1769007576560,7.3502817,2983.4,2981.0,11.69173367]
[1769007576759,7.3502817,2983.4,2981.7,11.69173367]
[1769007577060,0.73502817,2983.3,2981.7,11.69173367]
[1769007577439,0.73502817,2983.3,2981.9,11.69173367]
[1769007578048,0.73502817,2983.3,2982.3,0.001]
[1769007578259,0.73502817,2983.3,2981.9,11.69173367]
[1769007578660,3.35210512,2983.2,2981.9,11.69173367]
[1769007578850,6.70409842,2983.3,2982.0,11.69173367]
[1769007579364,3.35204921,2983.3,2982.0,11.69173367]
[1769007579657,6.70409842,2983.3,2982.0,11.69173367]
[1769007580247,0.64651186,2983.2,2982.0,11.69173367]
[1769007580445,0.64651186,2983.2,2981.5,11.69173367]
[1769007580678,6.70465972,2983.0,2981.6,11.69173367]
[1769007582071,0.554,2982.9,2981.6,11.69173367]
[1769007582843,6.70510928,2982.8,2981.6,11.69173367]
[1769007583045,3.35255464,2982.8,2981.6,11.69173367]
[1769007583475,6.70510928,2982.8,2981.6,11.69173367]
[1769007583648,0.72591093,2982.7,2981.6,11.69173367]
[1769007584279,0.72591093,2982.7,2981.6,11.53665304]
[1769007584447,0.72591093,2982.7,2981.6,10.10774116]
[1769007584642,0.72591093,2982.7,2981.6,6.74977803]
[1769007584870,6.7055589,2982.6,2981.6,6.74977803]
[1769007585080,0.74314698,2982.5,2981.6,3.39183286]
[1769007585375,0.74314698,2982.5,2981.6,2.58134051]
[1769007585566,3.35277945,2982.6,2981.6,2.42625861]
[1769007585948,3.35277945,2982.6,2981.6,1.8040285]
[1769007586175,6.7055589,2982.6,2981.3,11.40669636]
[1769007586351,11.34344109,2982.5,2981.1,11.40669636]
[1769007586555,6.7055589,2982.6,2981.1,11.40669636]
[1769007586775,1.31706775,2982.5,2981.2,11.40669636]
[1769007586966,3.35300429,2982.4,2981.2,11.40669636]
[1769007588548,4.02349065,2982.5,2981.2,11.40669636]
[1769007588748,4.08732392,2983.1,2981.3,11.40669636]
[1769007588973,4.08732392,2983.1,2980.6,3.58957625]
[1769007588974,0.554,2983.2,2981.7,11.40669636]
[1769007589472,0.554,2983.2,2981.9,11.40669636]
[1769007589653,3.90610741,2983.2,2981.9,11.40669636]
[1769007589850,3.90610741,2983.2,2981.7,11.40669636]
[1769007590042,3.90810741,2983.2,2981.7,11.40669636]
[1769007590249,0.64651186,2983.1,2981.7,11.40669636]
[1769007590978,3.35232986,2983.0,2981.7,11.40669636]
[1769007591177,6.70465972,2983.0,2981.7,11.40669636]
[1769007591474,0.31381886,2982.9,2981.7,11.40669636]
[1769007591663,7.43997688,2983.0,2981.7,11.40669636]
[1769007591859,0.31381894,2982.9,2981.7,11.40669636]
[1769007592060,7.43997688,2983.0,2981.7,11.40669636]
[1769007592371,0.31386892,2982.9,2981.7,11.40669636]
[1769007592549,0.77538458,2982.9,2981.7,11.40669636]
[1769007593177,4.12791221,2982.9,2981.7,11.40669636]
[1769007593550,0.31389996,2982.8,2981.7,11.40669636]
[1769007593746,4.12791221,2982.9,2981.7,11.40669636]
[1769007593975,0.31390003,2982.8,2981.7,11.40669636]
[1769007594280,0.64651186,2982.7,2981.7,11.40669636]
[1769007597494,11.65740518,2982.6,2981.4,0.001]
[1769007597697,11.65740518,2982.5,2981.0,11.40669636]
[1769007597897,0.31396409,2982.4,2981.0,14.76124943]
[1769007598056,0.31396409,2982.4,2981.1,12.03812572]
[1769007598260,1.16574052,2982.3,2981.1,12.03812572]
[1769007598655,22.77303497,2982.7,2981.1,12.03812572]
[1769007598868,0.3140087,2982.6,2981.1,12.03812572]
[1769007599065,0.3140087,2982.5,2981.1,12.03812572]
[1769007599271,0.3140087,2982.4,2981.1,12.03812572]
[1769007599989,0.3140087,2982.4,2980.6,0.001]
[1769007599990,12.06849095,2982.3,2980.6,0.001]
[1769007600195,12.77047019,2982.3,2980.6,12.03912572]
[1769007600379,0.31402697,2982.2,2980.7,0.03354916]
[1769007600557,0.70197924,2982.3,2981.0,12.03812572]
[1769007600887,0.3140181,2982.2,2980.7,12.03812572]
[1769007601056,6.70578372,2982.5,2981.0,12.03812572]
[1769007601252,3.35311672,2982.3,2981.0,12.03812572]
[1769007601475,18.77472439,2982.3,2980.6,12.03912572]
[1769007601674,12.38246825,2982.2,2980.6,0.001]
[1769007601882,12.06849095,2982.0,2980.6,0.001]
[1769007602187,0.3139773,2981.9,2980.6,0.001]
[1769007602860,0.3139773,2981.9,2981.3,0.001]
[1769007603063,0.3139773,2981.9,2980.6,12.03912572]
[1769007603369,0.3139773,2981.9,2980.6,0.001]
[1769007603370,12.06849095,2981.6,2980.6,0.001]
[1769007603773,3.35379146,2981.7,2980.6,0.001]
[1769007603956,3.90761828,2981.9,2980.6,12.03912572]
[1769007604151,0.31361457,2981.8,2980.7,0.03354916]
[1769007604352,7.26123656,2981.9,2980.7,0.03354916]
[1769007604556,13.10813117,2981.8,2980.6,0.001]
[1769007604788,12.71500281,2981.6,2979.8,12.03812572]
[1769007605173,12.71500281,2981.6,2979.9,12.03812572]
[1769007605373,12.71500281,2981.6,2979.9,18.74975194]
[1769007605374,3.35401643,2981.5,2979.9,18.74975194]
[1769007605668,0.64651186,2981.6,2980.0,12.03812572]
[1769007605868,0.64651186,2981.6,2980.2,12.03812572]
[1769007606083,0.64651186,2981.6,2980.4,12.03812572]
[1769007606295,0.64651186,2981.6,2980.6,12.03812572]
[1769007607014,0.64651186,2981.6,2979.9,10.06744352]
[1769007607015,0.64651186,2981.6,2980.7,12.07167488]
[1769007607170,0.64651186,2981.6,2980.7,12.03812572]
[1769007607381,0.64651186,2981.6,2980.8,12.03812572]
[1769007607918,0.554,2982.6,2980.9,12.03812572]
[1769007608213,6.83333408,2982.7,2981.1,12.03812572]
[1769007608214,0.31316393,2982.5,2981.1,12.03812572]
[1769007608416,3.48066704,2982.7,2981.2,12.03812572]
[1769007608417,0.554,2982.6,2981.2,12.03812572]
[1769007608601,0.31315629,2982.5,2981.3,0.03354241]
[1769007608774,3.35456424,2982.8,2981.3,12.07166813]
[1769007608972,3.66582265,2982.7,2981.3,12.03812572]
[1769007609172,0.31315561,2982.6,2981.3,12.03812572]
[1769007609508,3.35266704,2982.7,2981.3,15.39231662]
[1769007609811,0.002,2982.8,2981.4,12.071667]
[1769007610010,0.002,2982.8,2981.6,12.03812572]
[1769007610167,0.002,2982.8,2981.3,10.06267376]
[1769007610168,0.002,2982.8,2981.8,12.03812572]
[1769007610713,0.002,2983.2,2981.4,12.03812572]
[1769007610916,0.002,2983.2,2981.6,12.03812572]
[1769007611086,0.002,2983.2,2981.8,12.03812572]
[1769007611405,0.002,2983.2,2982.0,12.03812572]
[1769007611771,0.64651186,2983.1,2982.2,12.03812572]
[1769007612295,0.64651186,2983.1,2982.1,3.3533416]
[1769007612296,0.64651186,2983.1,2981.9,3.35353804]
[1769007612466,0.64651186,2983.1,2981.8,12.03812572]
[1769007612869,0.64651186,2983.1,2981.8,15.39180349]
[1769007613101,0.64651186,2983.1,2981.8,15.39172131]
[1769007613274,0.64651186,2983.1,2981.8,12.03812572]
[1769007613481,0.64651186,2983.1,2981.8,15.39173673]
[1769007613880,0.64651186,2983.1,2981.9,15.39167371]
[1769007614104,0.64651186,2983.1,2982.0,12.07166026]
[1769007614414,0.64651186,2983.1,2982.1,12.03812572]
[1769007614913,0.002,2983.4,2982.0,12.27169602]
[1769007615126,0.002,2983.4,2982.2,12.03812572]
[1769007615684,0.002,2982.9,2982.2,12.03812572]
[1769007615882,0.002,2982.9,2982.2,15.39130253]
[1769007616109,0.002,2983.1,2982.3,11.87379446]
[1769007616268,0.002,2983.4,2982.3,11.87379446]
[1769007616472,0.002,2983.4,2983.1,0.030111]
[1769007616898,0.002,2983.4,2982.3,11.87379446]
[1769007618035,0.002,2983.4,2982.4,6.70600858]
[1769007618207,0.002,2983.4,2982.5,11.87379446]
[1769007618917,12.2056811,2983.4,2981.5,11.87379446]
[1769007619414,12.2056811,2983.4,2981.4,0.554]
[1769007619415,12.2056811,2983.4,2982.2,3.35312697]
[1769007619612,12.2056811,2983.4,2982.1,3.35328502]
[1769007619810,1.22056811,2983.3,2982.1,3.35328502]
[1769007620017,0.002,2983.4,2982.3,3.35309346]
[1769007620227,0.002,2983.4,2982.4,0.03353004]
[1769007620913,0.002,2983.4,2982.4,11.87379446]
[1769007621488,0.002,2983.4,2982.2,3.35318381]
[1769007621690,0.002,2983.4,2982.2,18.58020742]
[1769007622198,0.002,2983.4,2982.3,11.87379446]
[1769007622711,0.002,2983.4,2981.5,10.06204929]
[1769007622712,12.2056811,2983.4,2981.6,11.87379446]
[1769007623210,12.2056811,2983.4,2981.5,6.70803286]
[1769007623410,12.2056811,2983.4,2981.6,11.87379446]
[1769007624417,0.002,2983.4,2981.9,11.87379446]
[1769007624618,0.002,2983.4,2982.1,11.87379446]
[1769007625713,0.002,2983.4,2981.8,6.94092826]
[1769007625912,0.002,2983.4,2981.9,11.87379446]
[1769007626210,0.002,2983.4,2982.1,11.87379446]
[1769007626414,0.002,2983.4,2982.0,6.7069081]
[1769007626415,0.002,2983.4,2982.3,11.87379446]
[1769007626583,0.002,2983.4,2982.4,0.03353004]
[1769007627680,0.002,2983.4,2982.3,11.87379446]
[1769007627881,0.002,2983.4,2982.3,11.87479446]
[1769007628107,0.002,2983.2,2982.3,11.87479446]
[1769007628417,0.002,2983.2,2982.4,3.38653433]
[1769007628612,0.002,2983.2,2982.4,0.03353004]
[1769007628828,0.002,2983.2,2982.3,15.22787376]
[1769007629016,0.002,2983.2,2982.3,18.58099048]
[1769007629320,0.002,2983.2,2982.4,0.03353004]
[1769007629901,0.002,2983.7,2982.6,11.87379446]
[1769007630117,0.002,2983.7,2982.4,0.554]
[1769007630118,0.002,2983.7,2982.8,11.87379446]
[1769007630307,0.002,2983.7,2983.0,6.70465972]
[1769007630506,0.002,2983.7,2983.1,0.03352217]
[1769007631212,0.002,2984.2,2983.1,11.90731663]
[1769007631416,0.002,2984.3,2983.3,11.87379446]
[1769007631611,0.002,2984.3,2983.2,0.58752105]
[1769007631612,0.002,2984.6,2983.5,11.87379446]
[1769007632215,0.002,2984.6,2983.0,18.57845418]
[1769007632516,12.2056811,2984.6,2983.0,3.35231985]
[1769007632725,0.002,2984.6,2983.1,11.90731663]
[1769007632935,0.002,2984.6,2983.3,11.87379446]
[1769007633540,0.002,2984.6,2983.2,0.554]
[1769007633735,0.002,2984.6,2983.0,6.70464971]
[1769007634031,0.002,2984.6,2983.1,0.03352217]
[1769007634330,0.002,2984.6,2983.3,11.87379446]
[1769007634531,0.002,2984.6,2983.2,6.70421024]
[1769007634923,0.002,2984.6,2983.2,3.35210512]
[1769007635741,12.2056811,2984.6,2982.6,3.35269987]
[1769007635913,12.2056811,2984.6,2982.4,11.87379446]
[1769007636113,12.2036811,2984.4,2982.4,11.87379446]
[1769007636316,12.2036811,2984.2,2982.3,6.70723344]
[1769007636911,12.2036811,2984.2,2982.3,3.35411672]
[1769007637104,12.2036811,2984.2,2982.3,0.001]
[1769007637310,12.2036811,2984.0,2982.3,11.87479446]
[1769007637508,1.22036811,2983.9,2982.3,11.87479446]
[1769007638308,1.22036811,2983.9,2982.4,6.70600858]
[1769007638515,4.57169787,2983.9,2982.4,3.35300429]
[1769007638842,12.2036811,2983.8,2982.3,0.001]
[1769007639314,12.2036811,2983.8,2982.3,3.35402142]
[1769007639514,13.8812179,2983.7,2982.5,0.001]
[1769007640170,12.2036811,2983.5,2982.3,0.001]
[1769007640372,12.2036811,2983.1,2981.2,3.3542422]
[1769007640661,12.2036811,2982.9,2981.1,3.35442062]
[1769007641065,12.2036811,2982.9,2981.1,6.70888709]
[1769007641266,13.47944921,2982.8,2981.1,3.35442062]
[1769007641832,13.47944921,2982.8,2981.1,6.70888709]
[1769007642434,14.03344921,2982.8,2980.9,11.87379446]
[1769007642777,17.38604103,2982.8,2980.9,11.87379446]
[1769007643276,5.18235993,2982.8,2980.9,11.87379446]
[1769007643458,12.2036811,2982.6,2980.8,6.70960814]
[1769007643759,12.2036811,2982.4,2980.7,3.35488413]
[1769007643929,12.2036811,2982.4,2980.7,6.70980076]
[1769007644334,0.554,2982.4,2980.8,11.87379446]
[1769007644558,3.90702354,2982.4,2981.0,3.354579]
[1769007644760,12.2036811,2982.3,2980.7,3.35486229]
[1769007645159,12.2036811,2982.3,2980.8,3.35478768]
[1769007645364,12.2036811,2982.3,2980.9,3.3546371]
[1769007645565,1.61107046,2982.2,2980.9,3.3546371]
[1769007645765,13.47840506,2982.2,2980.4,12.70922176]
[1769007645933,13.47840506,2982.2,2980.7,3.35485595]
[1769007646138,13.47840506,2982.2,2980.8,3.35474504]
[1769007646358,13.47840506,2982.2,2980.4,12.70922176]
[1769007646556,13.21517511,2982.1,2980.5,6.7102835]
[1769007646754,13.21517511,2982.1,2980.6,0.00975375]
[1769007646938,13.21517511,2982.1,2980.5,10.06542525]
[1769007647339,1.34784051,2982.1,2980.5,19.41950526]
[1769007647535,15.7746145,2982.2,2980.5,19.41950526]
[1769007647744,11.8673346,2982.1,2980.5,6.7102835]
[1769007647950,11.8673346,2982.1,2980.4,3.35523281]
[1769007648346,11.8673346,2982.1,2980.4,3.3552352]
[1769007648648,11.8673346,2981.9,2979.9,6.7116346]
[1769007648848,11.8673346,2981.7,2979.9,6.7116346]
[1769007649056,11.8673346,2981.7,2979.9,10.0674519]
[1769007649840,11.8673346,2981.7,2979.9,6.7116346]
[1769007650243,11.8673346,2981.7,2979.9,10.0674519]
[1769007650964,11.8673346,2981.7,2979.9,22.77667366]
[1769007651270,1.37247589,2981.6,2979.9,22.77667366]
[1769007651471,13.23981049,2981.6,2979.9,19.42085636]
[1769007652369,13.23981049,2981.6,2979.9,6.7116346]
[1769007652558,13.79381049,2981.6,2979.9,10.0674519]
[1769007652866,13.79381049,2981.6,2980.1,0.001]
[1769007653072,13.24671565,2981.5,2980.1,0.001]
[1769007654174,0.554,2981.4,2980.1,0.001]
[1769007654370,12.4213346,2981.4,2980.1,0.001]
[1769007654974,15.7754696,2981.4,2980.1,0.03455592]
[1769007655200,11.8673346,2981.4,2980.1,0.001]
[1769007655368,1.66008117,2981.3,2980.1,0.03455592]
[1769007655571,1.93338105,2981.5,2980.1,0.001]
[1769007655793,0.554,2981.5,2980.1,0.001]
[1769007655997,11.8673346,2982.2,2980.1,12.74377768]
[1769007656166,0.554,2982.1,2980.3,12.70922176]
[1769007656372,12.4213346,2982.1,2980.3,12.70922176]
[1769007656591,13.10946806,2982.0,2980.3,12.70922176]
[1769007656871,15.22090111,2981.9,2980.3,12.70922176]
[1769007657083,11.8673346,2981.8,2980.1,0.001]
[1769007657720,5.14959759,2982.0,2980.3,19.41991601]
[1769007657874,3.90746413,2982.0,2980.3,19.41991601]
[1769007658317,0.554,2982.0,2980.4,12.80424091]
[1769007658624,3.35198102,2983.4,2980.4,12.80424091]
[1769007658625,11.89513586,2983.0,2981.0,12.80424091]
[1769007658775,11.89513586,2983.0,2980.4,0.555]
[1769007658776,1.18951359,2982.9,2981.2,12.80424091]
[1769007658991,1.18951359,2982.9,2981.3,22.8669652]
[1769007659613,1.18951359,2982.9,2981.3,19.51272377]
[1769007659990,1.18951359,2982.9,2981.3,22.8669652]
[1769007660241,11.89713586,2984.0,2981.4,13.59281121]
[1769007660385,0.555,2983.9,2981.4,13.59281121]
[1769007660786,12.45013586,2983.9,2981.5,0.555]
[1769007661096,11.89513586,2983.7,2981.6,3.35390394]
[1769007661287,11.89513586,2983.5,2981.6,6.70780788]
[1769007661689,11.89513586,2983.5,2981.7,12.80424091]
[1769007661890,12.44913586,2983.5,2981.7,12.80424091]
[1769007662194,11.89513586,2983.3,2981.1,3.35440427]
[1769007662394,11.89513586,2983.3,2980.9,16.15882546]
[1769007662594,11.89513586,2983.1,2981.0,3.35448955]
[1769007662891,11.89513586,2983.1,2981.0,3.35448267]
[1769007663091,11.89513586,2982.9,2980.9,3.35460564]
[1769007663307,11.89513586,2982.9,2981.0,3.35456657]
[1769007664141,11.89513586,2982.9,2980.6,3.35494007]
[1769007664142,11.89713586,2982.9,2980.6,3.35494007]
[1769007664435,11.89713586,2982.9,2980.3,3.35532397]
[1769007664436,11.89513586,2982.7,2980.3,3.35532397]
[1769007664643,11.89513586,2982.3,2980.3,3.35529457]
[1769007664939,11.89513586,2981.9,2980.1,0.001]
[1769007665236,11.89513586,2981.5,2979.5,0.001]
[1769007665447,11.89513586,2981.3,2979.5,0.001]
[1769007666098,0.554,2981.4,2979.5,12.80524091]
[1769007666320,0.554,2981.6,2979.7,12.80424091]
[1769007667092,0.554,2981.6,2979.8,6.71185984]
[1769007667320,0.554,2981.6,2979.8,19.51610075]
[1769007667523,7.26185892,2981.6,2979.8,16.16017083]
[1769007667821,11.89513586,2981.5,2979.6,3.35609453]
[1769007668031,10.61578838,2981.6,2979.7,3.35604252]
[1769007668032,14.14622828,2981.4,2979.7,3.35604252]
[1769007668190,14.14622828,2981.4,2979.7,6.71208507]
[1769007668391,14.14622828,2981.4,2979.6,3.35607215]
[1769007668628,14.14622828,2981.4,2979.7,3.35600378]
[1769007668794,14.14622828,2981.4,2979.7,6.71204633]
[1769007668996,1.41462283,2981.3,2979.7,6.71204633]
[1769007669209,1.41462283,2981.3,2979.6,0.2335703]
[1769007669416,0.555,2981.4,2979.6,13.03781121]
[1769007669802,0.555,2981.4,2979.6,12.80424091]
[1769007670002,12.45013586,2981.4,2979.6,12.80424091]
[1769007670339,12.45013586,2981.4,2979.5,0.001]
[1769007670627,13.81097065,2981.3,2979.5,0.001]
[1769007671189,3.35435395,2981.2,2979.5,0.001]
[1769007671618,18.60384376,2981.2,2979.5,0.001]
[1769007671817,15.24948981,2981.2,2979.5,0.001]
[1769007673801,11.89513586,2981.2,2979.5,0.001]
[1769007674002,1.38109707,2981.1,2979.5,12.80524091]
[1769007674204,3.90921058,2981.4,2979.5,12.80524091]
[1769007674513,11.89513586,2981.3,2979.5,12.80524091]
[1769007675307,11.89513586,2981.2,2979.6,6.71231036]
[1769007675608,11.89513586,2981.2,2979.6,3.35615518]
[1769007676107,11.89513586,2981.2,2979.6,6.71231036]
[1769007676312,1.52494848,2981.1,2979.6,3.35615518]
[1769007676602,12.90242849,2981.1,2979.5,0.001]
[1769007676802,12.90242849,2980.9,2979.5,0.001]
[1769007677013,12.90242849,2980.9,2979.5,3.35726717]
[1769007677218,1.29024285,2980.8,2979.7,0.001]
[1769007677722,1.84524285,2980.8,2979.7,0.001]
[1769007677923,5.20005676,2980.8,2979.7,0.001]
[1769007678112,8.55487067,2980.8,2979.7,0.001]
[1769007678427,12.90242849,2980.7,2979.5,0.001]
[1769007678626,1.81024853,2980.6,2979.5,0.001]
[1769007679339,12.90242849,2980.5,2979.5,0.001]
[1769007679644,12.90242849,2980.5,2979.5,9.637e-05]
[1769007681418,12.90242849,2980.3,2979.5,9.637e-05]
[1769007681934,12.90242849,2980.3,2978.4,6.7149279]
[1769007682132,14.8637222,2980.2,2978.4,18.65527928]
[1769007682430,0.555,2980.1,2978.4,18.65527928]
[1769007683042,13.45742849,2980.1,2978.4,15.2977719]
[1769007683337,13.45742849,2980.1,2978.3,3.35761877]
[1769007683634,0.555,2980.1,2978.3,11.97392758]
[1769007683832,0.25162937,2980.0,2978.3,11.94035138]
[1769007684028,0.25162937,2980.0,2978.5,11.94035138]
[1769007684231,0.25162937,2980.0,2978.6,0.03357281]
[1769007684534,0.25162937,2980.0,2978.5,11.94035138]
[1769007685523,0.25162937,2980.0,2978.6,18.65491526]
[1769007685902,0.555,2980.1,2978.7,11.97392307]
[1769007686103,12.90242849,2980.7,2978.9,11.94035138]
[1769007687108,12.90242849,2980.7,2979.1,11.94035138]
[1769007687326,16.25696853,2981.1,2979.1,11.94035138]
[1769007687530,0.555,2981.0,2979.3,11.94035138]
[1769007687709,0.555,2981.0,2979.5,11.94035138]
[1769007687903,0.555,2981.0,2979.2,10.0698174]
[1769007687904,0.555,2981.0,2979.7,11.94035138]
[1769007688203,0.555,2981.0,2979.8,0.03355929]
[1769007688740,0.555,2981.0,2979.7,11.94035138]
[1769007688937,0.555,2981.0,2979.3,12.17392168]
[1769007689835,0.555,2981.0,2979.4,22.00949279]
[1769007690016,0.555,2981.0,2979.5,0.001]
[1769007690351,0.002,2980.8,2979.5,0.001]
[1769007691212,12.90442849,2980.8,2979.5,0.001]
[1769007691538,12.90242849,2980.6,2979.5,0.001]
[1769007691840,16.25779539,2980.3,2979.5,2e-07]
[1769007692040,12.90242849,2980.2,2978.6,3.35724154]
[1769007692240,0.555,2980.1,2978.6,6.71452348]
[1769007692445,13.45742849,2980.1,2978.6,3.35724154]
[1769007693630,13.45742849,2980.1,2978.6,6.71452348]
[1769007693834,1.34574285,2980.0,2978.3,6.71516514]
[1769007694148,1.34574285,2980.0,2978.3,22.01313663]
[1769007694353,1.34574285,2980.0,2978.4,11.97392645]
[1769007694651,1.34574285,2980.0,2978.4,11.94035138]
[1769007695310,14.24817134,2980.0,2978.3,6.71516514]
[1769007695517,1.48031713,2979.9,2978.4,11.94035138]
[1769007695716,0.555,2980.1,2978.4,11.94035138]
[1769007695942,0.555,2980.1,2978.5,6.71478932]
[1769007696143,0.555,2980.1,2978.6,11.97392419]
[1769007696342,0.555,2980.1,2978.6,11.94035138]
[1769007696552,0.555,2980.1,2978.8,11.94035138]
[1769007696858,0.555,2980.1,2978.9,0.03356943]
[1769007697418,0.555,2980.1,2978.5,6.71478932]
[1769007697622,0.555,2980.1,2978.5,10.07218398]
[1769007698057,0.555,2980.1,2978.5,11.94035138]
[1769007698253,0.555,2980.1,2978.5,11.44085138]
[1769007698457,0.555,2980.1,2978.7,11.94035138]
[1769007698654,0.555,2980.1,2978.8,11.97392194]
[1769007698856,0.555,2980.1,2978.8,11.94035138]
[1769007699361,0.555,2980.1,2978.9,11.97392081]
[1769007699563,0.555,2980.1,2978.9,11.94035138]
[1769007699863,0.555,2980.1,2979.0,0.03356831]
[1769007700230,12.90442849,2980.8,2979.1,10.07015541]
[1769007700463,0.31345093,2980.7,2979.2,0.03356605]
[1769007700627,0.002,2980.8,2979.2,11.97391743]
[1769007700825,0.002,2980.8,2979.4,11.94035138]
[1769007701026,0.002,2980.8,2979.6,11.94035138]
[1769007701254,0.002,2980.8,2979.7,0.03356042]
[1769007701647,0.002,2980.8,2979.6,11.94035138]
[1769007702150,3.35600061,2981.6,2979.9,22.92806642]
[1769007702151,1e-08,2981.6,2979.9,22.92806642]
[1769007702465,1e-08,2981.6,2980.4,11.94035138]
[1769007702762,0.002,2982.2,2980.8,11.94035138]
[1769007703166,0.002,2982.2,2981.0,11.94035138]
[1769007703471,0.002,2982.8,2981.4,11.94035138]
[1769007704129,0.002,2982.8,2981.6,11.94035138]
[1769007705366,0.002,2982.8,2981.5,6.70803286]
[1769007706233,0.002,2982.8,2981.3,10.06272429]
[1769007706432,0.002,2982.8,2981.4,12.43799117]
[1769007707334,0.002,2982.8,2981.3,6.70848286]
[1769007707854,12.02390592,2982.8,2981.3,3.35424143]
[1769007708057,13.22449651,2982.7,2981.2,3.35433494]
[1769007708228,12.02190592,2982.6,2980.7,6.70977772]
[1769007708960,12.02190592,2982.4,2980.4,3.35520475]
[1769007709163,12.02190592,2982.2,2979.9,3.35577853]
[1769007709385,0.555,2982.5,2980.4,3.35518067]
[1769007709386,12.02190592,2982.0,2980.4,3.35518067]
[1769007709661,12.02190592,2982.0,2980.1,3.35554213]
[1769007709838,12.02190592,2982.0,2980.6,3.35502272]
[1769007710188,1.20219059,2982.1,2980.5,12.43799117]
[1769007710332,12.02190592,2982.4,2980.5,12.43799117]
[1769007711777,12.02190592,2982.4,2980.5,12.99299117]
[1769007712184,12.02190592,2982.4,2980.6,10.06508754]
[1769007712796,12.02190592,2982.4,2980.6,22.50307871]
[1769007714088,12.02190592,2982.4,2980.7,12.43799117]
[1769007714280,1.20219059,2982.4,2980.8,25.85720745]
[1769007714495,12.02390592,2982.8,2980.8,25.85720745]
[1769007715246,12.02390592,2982.8,2980.8,22.50240338]
[1769007715359,12.02390592,2982.8,2980.9,12.43799117]
[1769007716192,12.02390592,2982.8,2981.0,10.063737]
[1769007716358,0.002,2982.2,2981.0,10.063737]
[1769007717458,0.002,2982.2,2981.0,6.709158]
[1769007717459,12.02390592,2982.2,2981.0,6.709158]
[1769007717786,0.002,2982.2,2981.0,6.709158]
[1769007717989,0.002,2982.2,2981.0,10.063737]
[1769007718798,0.002,2982.2,2981.1,12.3950657]
[1769007719017,0.002,2982.8,2981.3,12.36152104]
[1769007719197,0.002,2982.8,2981.0,3.354579]
[1769007719198,0.002,2982.8,2981.7,12.36152104]
[1769007719361,1e-08,2982.9,2981.9,12.36152104]
[1769007719665,1e-08,2982.9,2982.1,12.36152104]
[1769007720690,1e-08,2982.9,2982.2,6.7064583]
[1769007721194,1e-08,2982.9,2982.2,3.35322915]
[1769007721395,1e-08,2982.9,2981.9,3.35353869]
[1769007721598,12.23197244,2982.9,2981.6,3.35380335]
[1769007721800,13.45516967,2982.8,2981.6,3.35380335]
[1769007722018,13.45516967,2982.8,2980.9,0.554]
[1769007722172,13.45516967,2982.8,2980.7,0.001]
[1769007722498,13.45516967,2982.8,2980.7,0.555]
[1769007722701,13.45516967,2982.8,2981.0,3.354579]
[1769007722903,12.23197243,2982.6,2981.0,6.709158]
[1769007723312,12.23197243,2982.6,2981.0,10.063737]
[1769007724275,1.34551697,2982.7,2981.1,12.36152104]
[1769007724477,1e-08,2982.9,2981.1,12.36152104]
[1769007724897,1e-08,2982.9,2981.3,12.36152104]
[1769007725109,1e-08,2982.9,2981.4,0.03354128]
[1769007725613,1e-08,2982.9,2981.7,12.36152104]
[1769007725816,1e-08,2982.9,2981.7,12.59509134]
[1769007726114,1e-08,2982.9,2981.9,12.36152104]
[1769007726682,1e-08,2982.9,2982.0,0.03353454]
[1769007727110,1e-08,2982.9,2982.1,10.6140248]
[1769007727313,0.002,2983.6,2982.2,12.39505333]
[1769007727520,0.002,2983.6,2982.1,10.0600248]
[1769007727896,0.002,2983.6,2982.1,6.7066832]
[1769007728100,12.23397243,2983.6,2982.0,3.35340083]
[1769007728290,12.23397243,2983.6,2981.2,12.36152104]
[1769007728621,12.23397243,2983.6,2981.8,3.35357773]
[1769007728784,0.002,2982.7,2981.9,3.35354183]
[1769007729120,0.002,2982.7,2981.3,6.70845309]
[1769007729284,0.002,2982.7,2981.3,10.06269452]
[1769007729485,0.002,2982.7,2981.3,13.41693595]
[1769007729721,0.002,2982.7,2981.5,12.36152104]
[1769007729933,0.002,2983.6,2981.8,12.36152104]
[1769007730226,1.22339724,2983.5,2981.9,0.554]
[1769007731115,1.22339724,2983.5,2982.0,10.06036215]
[1769007732027,1.22339724,2983.5,2982.0,6.7069081]
[1769007732328,13.45536967,2983.5,2982.0,10.06036215]
[1769007732500,13.45536967,2983.5,2982.0,6.7069081]
[1769007732696,13.5777094,2983.4,2982.0,3.35345405]
[1769007732899,13.5777094,2983.4,2982.0,6.7069081]
[1769007733120,13.5777094,2983.4,2981.6,10.06171182]
[1769007733511,13.5777094,2983.4,2981.6,6.70780788]
[1769007734039,13.5777094,2983.4,2981.6,10.06171182]
[1769007734334,13.58974337,2983.3,2981.6,10.06171182]
[1769007735001,13.58974337,2983.3,2981.6,6.70780788]
[1769007735201,13.58974337,2983.3,2981.6,3.35390394]
[1769007736233,13.58974337,2983.3,2981.5,3.35401643]
[1769007736437,12.90957995,2983.1,2981.5,3.35401643]
[1769007736602,12.90957995,2983.1,2981.6,0.00677706]
[1769007736802,12.90957995,2983.1,2981.5,6.70803286]
[1769007737099,12.90957995,2983.1,2980.7,0.001]
[1769007737301,12.90957995,2982.9,2980.7,10.61974989]
[1769007737536,12.90957995,2982.7,2980.7,6.71083326]
[1769007738300,12.90957995,2982.7,2980.7,22.63212727]
[1769007738510,12.90957995,2982.7,2980.7,6.71083326]
[1769007738814,12.90957995,2982.5,2980.7,10.06574989]
[1769007739009,12.90957995,2982.5,2980.7,6.71083326]
[1769007739229,12.90957995,2982.3,2980.7,0.001]
[1769007740304,1.29095799,2982.4,2980.7,12.56737738]
[1769007740511,12.90957995,2982.7,2980.7,12.56737738]